fUSD/lending_fUSD_20260521
["ID","MTS","AMOUNT","RATE_DAILY","PERIOD"]
[422741304,1779341465000,-205.581849,0.00022932,14]
[422741303,1779341465000,-202.155686,0.00022932,14]
[422741307,1779341465000,-150.0,0.00023,2]
[422741305,1779341465000,-161.38668431,0.00023,2]
[422741306,1779341465000,-150.0,0.00023,2]
[422741308,1779341465000,-1012.94064805,0.00023,2]
[422741311,1779341465000,-161.0,0.00023,7]
[422741312,1779341465000,-339.0,0.00023,2]
[422741310,1779341465000,-392.0,0.00023,7]
[422741326,1779341465000,-2000.0,0.00023242,2]
[422741313,1779341465000,-367.0,0.00023,2]
[422741320,1779341465000,-2000.0,0.00023242,2]
[422741309,1779341465000,-258.0,0.00023,2]
[422741316,1779341465000,-317.0,0.00023175,2]
[422741315,1779341465000,-174.0,0.00023,2]
[422741317,1779341465000,-150.0,0.00023191,21]
[422741319,1779341465000,-2000.0,0.00023242,2]
[422741318,1779341465000,-193.14638025,0.000232,2]
[422741322,1779341465000,-2000.0,0.00023242,2]
[422741321,1779341465000,-2000.0,0.00023242,2]
[422741324,1779341465000,-2000.0,0.00023242,2]
[422741323,1779341465000,-2000.0,0.00023242,2]
[422741327,1779341465000,-2000.0,0.00023242,2]
[422741314,1779341465000,-2000.0,0.00023,7]
[422741358,1779341465000,-1037.75521016,0.00024,2]
[422741332,1779341465000,-2000.0,0.00023388,2]
[422741359,1779341465000,-3600.0,0.00024,2]
[422741398,1779341465000,-1000.0,0.00024658,2]
[422741395,1779341465000,-163.08130951,0.00024465,14]
[422741399,1779341465000,-965.05,0.00024658,2]
[422741400,1779341465000,-242.0913,0.00024658,2]
[422741393,1779341465000,-2402.1,0.00024324,2]
[422741391,1779341465000,-1033.17,0.000243,7]
[422741392,1779341465000,-384.16733951,0.00024324,14]
[422741397,1779341465000,-177.18,0.00024658,8]
[422741396,1779341465000,-169.89,0.00024566,2]
[422741394,1779341465000,-384.16733951,0.00024465,14]
[422741401,1779341465000,-151.0,0.00024658,2]
[422741405,1779341465000,-151.0,0.00024658,2]
[422741389,1779341465000,-10769.01041443,0.0002429,7]
[422741404,1779341465000,-242.0913,0.00024658,2]
[422741412,1779341465000,-242.0913,0.00024658,2]
[422741408,1779341465000,-242.0913,0.00024658,2]
[422741406,1779341465000,-242.0913,0.00024658,2]
[422741407,1779341465000,-151.0,0.00024658,2]
[422741411,1779341465000,-151.0,0.00024658,2]
[422741410,1779341465000,-242.0913,0.00024658,2]
[422741409,1779341465000,-151.0,0.00024658,2]
[422741416,1779341465000,-242.0913,0.00024658,2]
[422741413,1779341465000,-151.0,0.00024658,2]
[422741414,1779341465000,-242.0913,0.00024658,2]
[422741415,1779341465000,-151.0,0.00024658,2]
[422741357,1779341465000,-440.99,0.00023989,2]
[422741402,1779341465000,-242.0913,0.00024658,2]
[422741390,1779341465000,-150.1321572,0.00024291,14]
[422741403,1779341465000,-151.0,0.00024658,2]
[422741380,1779341465000,-379.58,0.0002411,2]
[422741386,1779341465000,-384.16733951,0.00024182,14]
[422741360,1779341465000,-1254.82050863,0.00024,2]
[422741361,1779341465000,-500.0,0.00024,2]
[422741364,1779341465000,-367.0,0.00024,2]
[422741374,1779341465000,-456.18,0.0002411,2]
[422741375,1779341465000,-319.33,0.0002411,2]
[422741363,1779341465000,-339.0,0.00024,2]
[422741371,1779341465000,-1329.97,0.0002411,2]
[422741365,1779341465000,-174.0,0.00024,2]
[422741368,1779341465000,-384.16733951,0.00024041,7]
[422741367,1779341465000,-2000.0,0.00024,7]
[422741369,1779341465000,-391.33982836,0.00024049,2]
[422741366,1779341465000,-658.18,0.00024,14]
[422741372,1779341465000,-930.98,0.0002411,2]
[422741382,1779341465000,-440.99,0.0002411,2]
[422741377,1779341465000,-1086.41,0.0002411,2]
[422741370,1779341465000,-1899.96,0.0002411,2]
[422741385,1779341465000,-392.0,0.00024164,7]
[422741387,1779341465000,-3755.18984609,0.0002421,2]
[422741388,1779341465000,-338.0,0.00024243,2]
[422741378,1779341465000,-760.49,0.0002411,2]
[422741384,1779341465000,-163.08130951,0.00024135,14]
[422741381,1779341465000,-1079.98,0.0002411,2]
[422741379,1779341465000,-542.26,0.0002411,2]
[422741376,1779341465000,-1232.69,0.0002411,2]
[422741373,1779341465000,-651.69,0.0002411,2]
[422741383,1779341465000,-755.98,0.0002411,2]
[422741460,1779341466000,-1129.23517265,0.00025,2]
[422741457,1779341466000,-2115.64,0.00024886,7]
[422741458,1779341466000,-888.72,0.00024886,7]
[422741455,1779341466000,-1018.33,0.00024886,7]
[422741456,1779341466000,-410.71,0.00024886,7]
[422741450,1779341466000,-410.71,0.00024658,2]
[422741453,1779341466000,-388.08,0.00024886,7]
[422741461,1779341466000,-210.3414764,0.00025,2]
[422741462,1779341466000,-1809.42179197,0.00025,2]
[422741451,1779341466000,-2115.64,0.00024658,2]
[422741454,1779341466000,-2121.37,0.00024886,7]
[422741452,1779341466000,-888.72,0.00024658,2]
[422741459,1779341466000,-152.0,0.00024981,3]
[422741476,1779341466000,-239730.3917141,0.00025,2]
[422741474,1779341466000,-2414.51179851,0.00025,2]
[422741463,1779341466000,-540.0,0.00025,2]
[422741465,1779341466000,-3085.06051278,0.00025,2]
[422741466,1779341466000,-7226.48028095,0.00025,2]
[422741467,1779341466000,-2230.65197369,0.00025,2]
[422741468,1779341466000,-169.61695968,0.00025,2]
[422741469,1779341466000,-150.0,0.00025,2]
[422741470,1779341466000,-712828.16180512,0.00025,2]
[422741471,1779341466000,-572509.53831855,0.00025,2]
[422741472,1779341466000,-769134.0,0.00025,20]
[422741473,1779341466000,-4000.0,0.00025,3]
[422741475,1779341466000,-258.18000847,0.00025,2]
[422741443,1779341466000,-500.0,0.00024658,2]
[422741464,1779341466000,-619.1608774,0.00025,2]
[422741446,1779341466000,-521.40999983,0.00024658,2]
[422741418,1779341466000,-242.0913,0.00024658,2]
[422741442,1779341466000,-500.0,0.00024658,2]
[422741424,1779341466000,-242.0913,0.00024658,2]
[422741478,1779341466000,-343.69693785,0.00025,2]
[422741420,1779341466000,-242.0913,0.00024658,2]
[422741423,1779341466000,-242.0913,0.00024658,2]
[422741421,1779341466000,-190.846678,0.00024658,2]
[422741419,1779341466000,-151.0,0.00024658,2]
[422741417,1779341466000,-151.0,0.00024658,2]
[422741428,1779341466000,-242.0913,0.00024658,2]
[422741430,1779341466000,-242.091296,0.00024658,2]
[422741425,1779341466000,-242.0913,0.00024658,2]
[422741427,1779341466000,-242.0913,0.00024658,2]
[422741429,1779341466000,-242.0913,0.00024658,2]
[422741434,1779341466000,-500.0,0.00024658,2]
[422741445,1779341466000,-500.0,0.00024658,2]
[422741433,1779341466000,-500.0,0.00024658,2]
[422741431,1779341466000,-500.0,0.00024658,2]
[422741435,1779341466000,-500.0,0.00024658,2]
[422741426,1779341466000,-242.0913,0.00024658,2]
[422741436,1779341466000,-500.0,0.00024658,2]
[422741438,1779341466000,-500.0,0.00024658,2]
[422741448,1779341466000,-2121.37,0.00024658,2]
[422741441,1779341466000,-500.0,0.00024658,2]
[422741449,1779341466000,-1018.33,0.00024658,2]
[422741439,1779341466000,-500.0,0.00024658,2]
[422741437,1779341466000,-500.0,0.00024658,2]
[422741440,1779341466000,-500.0,0.00024658,2]
[422741444,1779341466000,-500.0,0.00024658,2]
[422741447,1779341466000,-388.08,0.00024658,2]
[422741432,1779341466000,-500.0,0.00024658,2]
[422741477,1779341466000,-958.0,0.00025,5]
[422741422,1779341466000,-242.0913,0.00024658,2]
[422741485,1779341466000,-1018.33,0.00025115,2]
[422741513,1779341466000,-410.71,0.000258,30]
[422741514,1779341466000,-888.72,0.000258,7]
[422741515,1779341466000,-1319.0,0.0002589,2]
[422741517,1779341466000,-1033.17,0.000259,7]
[422741516,1779341466000,-329.95045833,0.0002589,2]
[422741527,1779341466000,-216.0,0.000261,2]
[422741519,1779341466000,-1201.51,0.00026,2]
[422741518,1779341466000,-215.20247212,0.00026,7]
[422741520,1779341466000,-1165.47,0.00026,7]
[422741521,1779341466000,-550.0,0.00026,2]
[422741524,1779341466000,-1018.33,0.00026029,2]
[422741523,1779341466000,-388.08,0.00026029,2]
[422741526,1779341466000,-888.72,0.00026029,2]
[422741511,1779341466000,-388.08,0.000258,30]
[422741522,1779341466000,-2000.0,0.00026,7]
[422741528,1779341466000,-3938.67245857,0.000261,2]
[422741530,1779341466000,-9449.0,0.000261,2]
[422741529,1779341466000,-1182.37733081,0.000261,2]
[422741531,1779341466000,-946.0,0.000261,2]
[422741535,1779341466000,-2000.0,0.00026257,7]
[422741539,1779341466000,-388.08,0.00026257,7]
[422741532,1779341466000,-2461.0,0.000261,2]
[422741486,1779341466000,-410.71,0.00025115,30]
[422741536,1779341466000,-2000.0,0.00026257,7]
[422741537,1779341466000,-650.0,0.00026257,7]
[422741533,1779341466000,-738.0,0.000261,2]
[422741534,1779341466000,-2000.0,0.00026257,7]
[422741540,1779341466000,-1018.33,0.00026257,7]
[422741525,1779341466000,-410.71,0.00026029,2]
[422741512,1779341466000,-1018.33,0.000258,7]
[422741538,1779341466000,-650.0,0.00026257,7]
[422741509,1779341466000,-733.0,0.00025767,2]
[422741508,1779341466000,-206.65,0.00025751,2]
[422741484,1779341466000,-2121.37,0.00025115,2]
[422741487,1779341466000,-2115.64,0.00025115,2]
[422741480,1779341466000,-2000.0,0.00025,7]
[422741488,1779341466000,-888.72,0.00025115,2]
[422741482,1779341466000,-440.15262915,0.00025,2]
[422741479,1779341466000,-378.09214486,0.00025,2]
[422741483,1779341466000,-388.08,0.00025115,30]
[422741490,1779341466000,-500.0,0.0002514,4]
[422741501,1779341466000,-2104.83,0.00025572,7]
[422741500,1779341466000,-391.33982836,0.00025571,2]
[422741489,1779341466000,-500.0,0.0002514,4]
[422741491,1779341466000,-500.0,0.0002514,4]
[422741493,1779341466000,-388.08,0.00025343,2]
[422741481,1779341466000,-182.18745695,0.00025,2]
[422741495,1779341466000,-1018.33,0.00025343,2]
[422741492,1779341466000,-492.57,0.0002514,4]
[422741506,1779341466000,-2115.64,0.00025572,7]
[422741510,1779341466000,-500.0,0.00025787,14]
[422741504,1779341466000,-1018.33,0.00025572,7]
[422741507,1779341466000,-888.72,0.00025572,7]
[422741505,1779341466000,-410.71,0.00025572,7]
[422741503,1779341466000,-2121.37,0.00025572,7]
[422741494,1779341466000,-2121.37,0.00025343,2]
[422741498,1779341466000,-888.72,0.00025343,2]
[422741497,1779341466000,-2115.64,0.00025343,2]
[422741499,1779341466000,-392.0,0.00025373,7]
[422741502,1779341466000,-388.08,0.00025572,7]
[422741496,1779341466000,-410.71,0.00025343,2]
[422741575,1779341467000,-500.0,0.00027397,2]
[422741581,1779341467000,-500.0,0.00027397,2]
[422741582,1779341467000,-500.0,0.00027397,2]
[422741572,1779341467000,-240.78661054,0.00027397,7]
[422741573,1779341467000,-245.2277039,0.00027397,7]
[422741569,1779341467000,-733.62550953,0.00027234,10]
[422741562,1779341467000,-400.0,0.00027124,2]
[422741571,1779341467000,-220.83465234,0.00027397,7]
[422741570,1779341467000,-185.89041866,0.000273,30]
[422741583,1779341467000,-500.0,0.00027397,2]
[422741578,1779341467000,-500.0,0.00027397,2]
[422741586,1779341467000,-500.0,0.00027397,2]
[422741574,1779341467000,-500.0,0.00027397,2]
[422741576,1779341467000,-500.0,0.00027397,2]
[422741580,1779341467000,-500.0,0.00027397,2]
[422741577,1779341467000,-500.0,0.00027397,2]
[422741589,1779341467000,-150.0,0.00027397,2]
[422741588,1779341467000,-550.63598377,0.00027397,2]
[422741590,1779341467000,-1500.0,0.00027397,2]
[422741592,1779341467000,-800.0,0.00027397,2]
[422741585,1779341467000,-500.0,0.00027397,2]
[422741564,1779341467000,-400.0,0.00027124,2]
[422741579,1779341467000,-500.0,0.00027397,2]
[422741565,1779341467000,-400.0,0.00027124,2]
[422741551,1779341467000,-888.72,0.00026486,2]
[422741563,1779341467000,-400.0,0.00027124,2]
[422741550,1779341467000,-1018.33,0.00026486,2]
[422741541,1779341467000,-410.71,0.00026257,7]
[422741547,1779341467000,-3634.0,0.00026454,2]
[422741543,1779341467000,-2402.1,0.00026296,2]
[422741542,1779341467000,-888.72,0.00026257,7]
[422741545,1779341467000,-260.39240912,0.00026397,2]
[422741546,1779341467000,-9861.26,0.000264,2]
[422741544,1779341467000,-733.0,0.00026315,2]
[422741548,1779341467000,-1354.0,0.00026454,2]
[422741549,1779341467000,-901.52,0.00026486,2]
[422741568,1779341467000,-418.0,0.00027124,2]
[422741553,1779341467000,-3445.0,0.00026808,2]
[422741554,1779341467000,-1033.0,0.00026808,2]
[422741556,1779341467000,-2000.0,0.00027,2]
[422741558,1779341467000,-2577.27033,0.0002701,2]
[422741557,1779341467000,-2000.0,0.00027,7]
[422741555,1779341467000,-733.0,0.00026863,3]
[422741559,1779341467000,-392.0,0.00027064,7]
[422741560,1779341467000,-391.33982836,0.00027093,2]
[422741561,1779341467000,-400.0,0.00027124,2]
[422741567,1779341467000,-400.0,0.00027124,2]
[422741566,1779341467000,-400.0,0.00027124,2]
[422741552,1779341467000,-827.0,0.00026797,2]
[422741584,1779341467000,-500.0,0.00027397,2]
[422741587,1779341467000,-500.0,0.00027397,2]
[422741591,1779341467000,-800.0,0.00027397,2]
[422741619,1779341467000,-1396.650208,0.00027397,2]
[422741623,1779341467000,-1396.650208,0.00027397,2]
[422741622,1779341467000,-1396.650208,0.00027397,2]
[422741627,1779341467000,-1396.650208,0.00027397,2]
[422741621,1779341467000,-1396.650208,0.00027397,2]
[422741624,1779341467000,-1396.650208,0.00027397,2]
[422741630,1779341467000,-1304.979961,0.00027397,2]
[422741626,1779341467000,-1396.650208,0.00027397,2]
[422741628,1779341467000,-1396.650208,0.00027397,2]
[422741629,1779341467000,-1396.6502,0.00027397,2]
[422741625,1779341467000,-1396.650208,0.00027397,2]
[422741631,1779341467000,-1304.979961,0.00027397,2]
[422741634,1779341467000,-1304.979961,0.00027397,2]
[422741636,1779341467000,-1304.979961,0.00027397,2]
[422741638,1779341467000,-1304.979961,0.00027397,2]
[422741635,1779341467000,-1304.979961,0.00027397,2]
[422741637,1779341467000,-1304.979961,0.00027397,2]
[422741640,1779341467000,-1304.979961,0.00027397,2]
[422741641,1779341467000,-1304.979961,0.00027397,2]
[422741639,1779341467000,-1304.979961,0.00027397,2]
[422741642,1779341467000,-1304.979961,0.00027397,2]
[422741593,1779341467000,-800.0,0.00027397,2]
[422741632,1779341467000,-1304.979961,0.00027397,2]
[422741620,1779341467000,-1396.650208,0.00027397,2]
[422741633,1779341467000,-1304.979961,0.00027397,2]
[422741616,1779341467000,-1396.650208,0.00027397,2]
[422741594,1779341467000,-800.0,0.00027397,2]
[422741614,1779341467000,-1396.650208,0.00027397,2]
[422741596,1779341467000,-800.0,0.00027397,2]
[422741599,1779341467000,-800.0,0.00027397,2]
[422741595,1779341467000,-800.0,0.00027397,2]
[422741601,1779341467000,-151.0,0.00027397,2]
[422741600,1779341467000,-177.18,0.00027397,31]
[422741597,1779341467000,-800.0,0.00027397,2]
[422741598,1779341467000,-800.0,0.00027397,2]
[422741602,1779341467000,-151.0,0.00027397,2]
[422741604,1779341467000,-151.0,0.00027397,2]
[422741606,1779341467000,-151.0,0.00027397,2]
[422741605,1779341467000,-151.0,0.00027397,2]
[422741617,1779341467000,-1396.650208,0.00027397,2]
[422741603,1779341467000,-151.0,0.00027397,2]
[422741609,1779341467000,-300.0,0.00027397,2]
[422741612,1779341467000,-1396.650208,0.00027397,2]
[422741618,1779341467000,-1396.650208,0.00027397,2]
[422741613,1779341467000,-1396.650208,0.00027397,2]
[422741611,1779341467000,-1396.650208,0.00027397,2]
[422741608,1779341467000,-164.152644,0.00027397,2]
[422741607,1779341467000,-151.0,0.00027397,2]
[422741610,1779341467000,-1396.650208,0.00027397,2]
[422741615,1779341467000,-1396.650208,0.00027397,2]
[422741686,1779341468000,-758.663895,0.00027397,2]
[422741681,1779341468000,-802.381537,0.00027397,2]
[422741683,1779341468000,-802.381537,0.00027397,2]
[422741690,1779341468000,-758.663895,0.00027397,2]
[422741687,1779341468000,-802.381537,0.00027397,2]
[422741678,1779341468000,-758.663895,0.00027397,2]
[422741684,1779341468000,-758.663895,0.00027397,2]
[422741682,1779341468000,-758.663895,0.00027397,2]
[422741680,1779341468000,-758.663895,0.00027397,2]
[422741675,1779341468000,-802.381537,0.00027397,2]
[422741691,1779341468000,-802.381537,0.00027397,2]
[422741672,1779341468000,-758.663895,0.00027397,2]
[422741685,1779341468000,-802.381537,0.00027397,2]
[422741679,1779341468000,-802.381537,0.00027397,2]
[422741701,1779341468000,-151.0,0.00027397,2]
[422741688,1779341468000,-758.663895,0.00027397,2]
[422741703,1779341468000,-151.0,0.00027397,2]
[422741704,1779341468000,-151.0,0.00027397,2]
[422741693,1779341468000,-802.381537,0.00027397,2]
[422741692,1779341468000,-758.663895,0.00027397,2]
[422741695,1779341468000,-802.38153504,0.00027397,2]
[422741698,1779341468000,-675.71,0.00027397,20]
[422741700,1779341468000,-151.0,0.00027397,2]
[422741696,1779341468000,-758.663895,0.00027397,2]
[422741699,1779341468000,-151.0,0.00027397,2]
[422741697,1779341468000,-758.663894,0.00027397,2]
[422741702,1779341468000,-151.0,0.00027397,2]
[422741705,1779341468000,-151.0,0.00027397,2]
[422741674,1779341468000,-758.663895,0.00027397,2]
[422741689,1779341468000,-802.381537,0.00027397,2]
[422741673,1779341468000,-802.381537,0.00027397,2]
[422741650,1779341468000,-965.05,0.00027397,2]
[422741669,1779341468000,-802.381537,0.00027397,2]
[422741708,1779341468000,-151.0,0.00027397,2]
[422741647,1779341468000,-1304.979961,0.00027397,2]
[422741643,1779341468000,-1304.979961,0.00027397,2]
[422741648,1779341468000,-1304.979961,0.00027397,2]
[422741646,1779341468000,-1304.979961,0.00027397,2]
[422741645,1779341468000,-1304.979961,0.00027397,2]
[422741644,1779341468000,-1304.979961,0.00027397,2]
[422741652,1779341468000,-151.0,0.00027397,2]
[422741651,1779341468000,-151.0,0.00027397,2]
[422741649,1779341468000,-1304.979966,0.00027397,2]
[422741654,1779341468000,-151.0,0.00027397,2]
[422741653,1779341468000,-802.381537,0.00027397,2]
[422741656,1779341468000,-802.381537,0.00027397,2]
[422741660,1779341468000,-151.0,0.00027397,2]
[422741661,1779341468000,-758.663895,0.00027397,2]
[422741655,1779341468000,-758.663895,0.00027397,2]
[422741664,1779341468000,-758.663895,0.00027397,2]
[422741659,1779341468000,-802.381537,0.00027397,2]
[422741663,1779341468000,-151.0,0.00027397,2]
[422741662,1779341468000,-802.381537,0.00027397,2]
[422741657,1779341468000,-151.0,0.00027397,2]
[422741658,1779341468000,-758.663895,0.00027397,2]
[422741676,1779341468000,-758.663895,0.00027397,2]
[422741666,1779341468000,-160.313237,0.00027397,2]
[422741677,1779341468000,-802.381537,0.00027397,2]
[422741667,1779341468000,-802.381537,0.00027397,2]
[422741665,1779341468000,-802.381537,0.00027397,2]
[422741668,1779341468000,-758.663895,0.00027397,2]
[422741671,1779341468000,-802.381537,0.00027397,2]
[422741670,1779341468000,-758.663895,0.00027397,2]
[422741707,1779341468000,-151.0,0.00027397,2]
[422741694,1779341468000,-758.663895,0.00027397,2]
[422741706,1779341468000,-151.0,0.00027397,2]
[422741743,1779341468000,-204.18221279,0.000275,2]
[422741746,1779341468000,-501.0,0.00027617,2]
[422741733,1779341468000,-500.0,0.000274,2]
[422741744,1779341468000,-1033.17,0.000275,7]
[422741758,1779341468000,-1795.6,0.00027855,2]
[422741748,1779341468000,-550.0,0.00027618,2]
[422741760,1779341468000,-1410.42,0.00027859,2]
[422741759,1779341468000,-1793.85,0.00027859,2]
[422741747,1779341468000,-550.0,0.00027618,2]
[422741751,1779341468000,-550.0,0.00027618,2]
[422741753,1779341468000,-550.0,0.00027618,2]
[422741750,1779341468000,-550.0,0.00027618,2]
[422741752,1779341468000,-550.0,0.00027618,2]
[422741756,1779341468000,-13316.57,0.000277,14]
[422741745,1779341468000,-196.12,0.00027571,2]
[422741749,1779341468000,-550.0,0.00027618,2]
[422741757,1779341468000,-500.0,0.000278,7]
[422741755,1779341468000,-619.0,0.00027618,2]
[422741762,1779341468000,-592.48,0.00027862,2]
[422741772,1779341468000,-1410.42,0.00027887,30]
[422741761,1779341468000,-1414.24,0.00027862,2]
[422741764,1779341468000,-1795.6,0.00027869,7]
[422741763,1779341468000,-678.89,0.00027866,2]
[422741773,1779341468000,-1414.24,0.0002789,30]
[422741765,1779341468000,-1793.85,0.00027873,7]
[422741770,1779341468000,-1795.6,0.00027883,30]
[422741771,1779341468000,-1793.85,0.00027887,30]
[422741768,1779341468000,-592.48,0.00027876,7]
[422741766,1779341468000,-1410.42,0.00027873,7]
[422741709,1779341468000,-151.0,0.00027397,2]
[422741754,1779341468000,-550.0,0.00027618,2]
[422741740,1779341468000,-1655.42,0.000274,7]
[422741769,1779341468000,-678.89,0.00027879,7]
[422741737,1779341468000,-500.0,0.000274,2]
[422741739,1779341468000,-897.53,0.000274,2]
[422741717,1779341468000,-151.78567293,0.00027397,3]
[422741711,1779341468000,-151.0,0.00027397,2]
[422741712,1779341468000,-300.195477,0.00027397,2]
[422741715,1779341468000,-51485.6,0.00027397,10]
[422741714,1779341468000,-61782.72,0.00027397,10]
[422741710,1779341468000,-151.0,0.00027397,2]
[422741767,1779341468000,-1414.24,0.00027876,7]
[422741713,1779341468000,-32399.0,0.00027397,10]
[422741719,1779341468000,-13316.57,0.000274,14]
[422741729,1779341468000,-500.0,0.000274,2]
[422741730,1779341468000,-500.0,0.000274,2]
[422741731,1779341468000,-500.0,0.000274,2]
[422741728,1779341468000,-500.0,0.000274,2]
[422741725,1779341468000,-500.0,0.000274,2]
[422741716,1779341468000,-42904.67,0.00027397,10]
[422741727,1779341468000,-500.0,0.000274,2]
[422741734,1779341468000,-500.0,0.000274,2]
[422741724,1779341468000,-500.0,0.000274,2]
[422741741,1779341468000,-1003.35,0.000274,7]
[422741742,1779341468000,-733.0,0.00027411,3]
[422741736,1779341468000,-500.0,0.000274,2]
[422741735,1779341468000,-500.0,0.000274,2]
[422741738,1779341468000,-898.35,0.000274,2]
[422741721,1779341468000,-602.47,0.000274,2]
[422741718,1779341468000,-2108.0,0.000274,7]
[422741723,1779341468000,-500.0,0.000274,2]
[422741726,1779341468000,-500.0,0.000274,2]
[422741732,1779341468000,-997.53,0.000274,2]
[422741722,1779341468000,-500.0,0.000274,2]
[422741720,1779341468000,-500.0,0.000274,2]
[422741816,1779341469000,-1410.42,0.00027987,2]
[422741818,1779341469000,-592.48,0.00027988,2]
[422741821,1779341469000,-51602.89043529,0.00028,2]
[422741815,1779341469000,-1793.85,0.00027987,2]
[422741808,1779341469000,-1795.6,0.0002797,30]
[422741810,1779341469000,-1410.42,0.00027973,30]
[422741811,1779341469000,-1414.24,0.00027974,30]
[422741807,1779341469000,-678.89,0.00027963,7]
[422741809,1779341469000,-1793.85,0.00027973,30]
[422741805,1779341469000,-1414.24,0.0002796,7]
[422741806,1779341469000,-592.48,0.0002796,7]
[422741814,1779341469000,-1795.6,0.00027985,2]
[422741817,1779341469000,-1414.24,0.00027988,2]
[422741822,1779341469000,-160.0,0.00028,2]
[422741824,1779341469000,-13316.57,0.00028,14]
[422741820,1779341469000,-1795.6,0.00027999,7]
[422741823,1779341469000,-643.0,0.00028,2]
[422741826,1779341469000,-215.23956962,0.00028,10]
[422741836,1779341469000,-678.89,0.00028004,7]
[422741825,1779341469000,-2500.0,0.00028,29]
[422741828,1779341469000,-1003.35,0.00028,7]
[422741827,1779341469000,-600.0,0.00028,2]
[422741829,1779341469000,-403.14,0.00028,2]
[422741834,1779341469000,-1414.24,0.00028003,7]
[422741831,1779341469000,-2000.0,0.00028,7]
[422741803,1779341469000,-1410.42,0.00027958,7]
[422741832,1779341469000,-1793.85,0.00028001,7]
[422741819,1779341469000,-678.89,0.00027991,2]
[422741801,1779341469000,-1795.6,0.00027956,7]
[422741788,1779341469000,-678.89,0.00027921,7]
[422741804,1779341469000,-733.0,0.00027958,4]
[422741830,1779341469000,-5267.95249964,0.00028,2]
[422741774,1779341469000,-592.48,0.0002789,30]
[422741776,1779341469000,-1795.6,0.00027898,2]
[422741777,1779341469000,-1655.42,0.000279,7]
[422741775,1779341469000,-678.89,0.00027893,30]
[422741786,1779341469000,-1414.24,0.00027918,7]
[422741787,1779341469000,-592.48,0.00027918,7]
[422741778,1779341469000,-1793.85,0.00027901,2]
[422741783,1779341469000,-1795.6,0.00027912,7]
[422741779,1779341469000,-1410.42,0.00027901,2]
[422741782,1779341469000,-678.89,0.00027907,2]
[422741781,1779341469000,-592.48,0.00027904,2]
[422741785,1779341469000,-1410.42,0.00027916,7]
[422741813,1779341469000,-678.89,0.00027977,30]
[422741784,1779341469000,-1793.85,0.00027916,7]
[422741790,1779341469000,-1793.85,0.0002793,30]
[422741799,1779341469000,-592.48,0.00027946,2]
[422741791,1779341469000,-1410.42,0.0002793,30]
[422741798,1779341469000,-1414.24,0.00027946,2]
[422741796,1779341469000,-1793.85,0.00027944,2]
[422741795,1779341469000,-1795.6,0.00027941,2]
[422741792,1779341469000,-1414.24,0.00027932,30]
[422741800,1779341469000,-678.89,0.00027949,2]
[422741793,1779341469000,-592.48,0.00027932,30]
[422741797,1779341469000,-1410.42,0.00027944,2]
[422741794,1779341469000,-678.89,0.00027935,30]
[422741802,1779341469000,-1793.85,0.00027958,7]
[422741812,1779341469000,-592.48,0.00027974,30]